fUSD/lending_fUSD_20250108
["ID","MTS","AMOUNT","RATE_DAILY","PERIOD"]
[348182771,1736370509916,-500.0,0.00013699,13]
[348182772,1736370509942,-500.0,0.00013699,13]
[348182773,1736370509967,-500.0,0.00013699,13]
[348182774,1736370509992,-500.0,0.00013699,13]
[348182775,1736370510017,-500.0,0.00013699,13]
[348182776,1736370510043,-500.0,0.00013699,13]
[348182777,1736370510068,-500.0,0.00013699,13]
[348182778,1736370510093,-500.0,0.00013699,13]
[348182779,1736370510118,-500.0,0.00013699,13]
[348182780,1736370510142,-500.0,0.00013699,13]
[348182781,1736370510167,-500.0,0.00013699,13]
[348182782,1736370510194,-500.0,0.00013699,13]
[348182783,1736370510220,-500.0,0.00013699,13]
[348182784,1736370510245,-500.0,0.00013699,13]
[348182785,1736370510271,-500.0,0.00013699,13]
[348182786,1736370510296,-500.0,0.00013699,13]
[348182787,1736370510325,-500.0,0.00013699,13]
[348182788,1736370510353,-500.0,0.00013699,13]
[348182789,1736370510379,-500.0,0.00013699,13]
[348182790,1736370510405,-500.0,0.00013699,13]
[348182791,1736370510432,-500.0,0.00013699,13]
[348182792,1736370510459,-500.0,0.00013699,13]
[348182793,1736370510489,-500.0,0.00013699,13]
[348182794,1736370510514,-500.0,0.00013699,13]
[348182795,1736370510539,-500.0,0.00013699,13]
[348182796,1736370510568,-500.0,0.00013699,13]
[348182797,1736370510595,-500.0,0.00013699,13]
[348182798,1736370510620,-500.0,0.00013699,13]
[348182799,1736370510661,-500.0,0.00013699,13]
[348182800,1736370510690,-500.0,0.00013699,13]
[348182801,1736370510716,-500.0,0.00013699,13]
[348182802,1736370510742,-500.0,0.00013699,13]
[348182803,1736370510767,-500.0,0.00013699,13]
[348182804,1736370510794,-500.0,0.00013699,13]
[348182805,1736370510821,-500.0,0.00013699,13]
[348182806,1736370511060,-500.0,0.00013699,13]
[348182807,1736370511086,-500.0,0.00013699,13]
[348182808,1736370511118,-500.0,0.00013699,13]
[348182809,1736370511145,-500.0,0.00013699,13]
[348182810,1736370511172,-500.0,0.00013699,13]
[348182811,1736370511199,-500.0,0.00013699,13]
[348182812,1736370511226,-500.0,0.00013699,13]
[348182813,1736370511255,-500.0,0.00013699,13]
[348182814,1736370511282,-500.0,0.00013699,13]
[348182815,1736370511310,-500.0,0.00013699,13]
[348182816,1736370511335,-500.0,0.00013699,13]
[348182817,1736370511361,-500.0,0.00013699,13]
[348182818,1736370511387,-500.0,0.00013699,13]
[348182819,1736370511415,-500.0,0.00013699,13]
[348182820,1736370511441,-465.0,0.00013699,13]
[348182821,1736370511468,-299.0,0.00013699,13]
[348182822,1736370511502,-1303.3,0.00013762,30]
[348182823,1736370511536,-150.13441252,0.00013983,5]
[348182824,1736370511571,-1303.3,0.00014036,30]
[348182825,1736370511603,-2167.55426942,0.0001421,7]
[348182826,1736370511632,-1303.3,0.0001431,30]
[348182827,1736370511659,-10000.0,0.00014321,15]
[348182828,1736370511687,-152.0,0.00014381,5]
[348182829,1736370511721,-1303.3,0.00014584,30]
[348182830,1736370511751,-152.0,0.00014832,6]
[348182831,1736370511778,-1303.3,0.00014858,30]
[348182832,1736370511804,-2924.23971703,0.000149,7]
[348182833,1736370511833,-1881.7118587,0.00015,7]
[348182834,1736370511858,-5528.02604674,0.00015,7]
[348182835,1736370511883,-94943.94790651,0.00015,7]
[348182836,1736370511909,-210512.09752267,0.00015,7]
[348182837,1736370511935,-15012.0,0.00015,10]
[348182838,1736370511962,-2995.097434,0.00015,14]
[348182839,1736370511990,-413.49804532,0.00015,10]
[348182840,1736370512016,-498.0,0.00015,10]
[348182841,1736370512042,-1800.0,0.00015,16]
[348182842,1736370512068,-37984.94323555,0.00015,7]
[348182843,1736370512094,-5270.17608215,0.00015,14]
[348182844,1736370512120,-5000.0,0.00015,7]
[348182845,1736370512145,-3464.0,0.00015,7]
[348182846,1736370512171,-5000.0,0.00015,7]
[348182847,1736370512197,-500.0,0.00015,5]
[348182848,1736370512224,-57088.0,0.00015,5]
[348182849,1736370512250,-150.0,0.00015,20]
[348182850,1736370512279,-1303.3,0.00015132,30]
[348182851,1736370512309,-152.0,0.00015283,7]
[348182852,1736370512336,-1303.3,0.00015406,30]
[348182853,1736370512366,-1303.3,0.0001568,30]
[348182854,1736370512395,-152.0,0.00015733,8]
[348182855,1736370512424,-1303.3,0.00015954,30]
[348182856,1736370512450,-1800.0,0.00016,17]
[348182857,1736370512479,-152.0,0.00016184,9]
[348182858,1736370512509,-1303.3,0.00016228,30]
[348182859,1736370512544,-1303.3,0.00016502,30]
[348182860,1736370512573,-152.0,0.00016635,10]
[348182861,1736370512599,-1303.30679414,0.00016776,30]
[348182862,1736370512628,-320353.94140658,0.000169,10]
[348182863,1736370519176,-999.0,0.00016158,6]
[348182864,1736370519220,-679646.05859342,0.000169,10]
[348182865,1736370519251,-1200.28309139,0.00017,10]
[348182866,1736370519279,-1800.0,0.00017,18]
[348182867,1736370519308,-152.0,0.00017086,11]
[348182868,1736370519337,-316202.65831519,0.00017196,10]
[348182869,1736370522759,-1778.54,0.000136,31]
[348182870,1736370522788,-1778.54,0.000136,31]
[348182871,1736370522816,-1778.54,0.000136,31]
[348182872,1736370522844,-1778.54,0.000136,31]
[348182873,1736370522872,-1778.54,0.000136,31]
[348182874,1736370522899,-1778.54,0.000136,31]
[348182875,1736370522926,-1778.54,0.000136,31]
[348182876,1736370522954,-1778.54,0.000136,31]
[348182877,1736370522982,-1778.54,0.000136,31]
[348182878,1736370523009,-1778.54,0.000136,31]
[348182879,1736370523036,-1778.54,0.000136,31]
[348182880,1736370523063,-1778.54,0.000136,31]
[348182881,1736370523092,-1778.54,0.000136,31]
[348182882,1736370523121,-1778.54,0.000136,31]
[348182883,1736370523149,-1778.54,0.000136,31]
[348182884,1736370523178,-1778.54,0.000136,31]
[348182885,1736370523270,-49308.24323983,0.00017196,10]
[348182886,1736370523297,-152.0,0.00017536,12]
[348182887,1736370523327,-7059.18,0.000178,7]
[348182888,1736370523355,-1169.0,0.000178,5]
[348182889,1736370523381,-152.0,0.00017987,13]
[348182890,1736370523406,-10000.0,0.00017998,31]
[348182891,1736370523431,-2000.0,0.00018,5]
[348182892,1736370523457,-1800.0,0.00018,19]
[348182893,1736370523482,-193.45667828,0.00018,12]
[348182894,1736370523509,-25000.0,0.00018179,30]
[348182895,1736370523535,-25000.0,0.00018179,30]
[348182896,1736370523559,-25000.0,0.00018179,30]
[348182897,1736370523587,-25000.0,0.00018179,30]
[348182898,1736370523612,-8233.10480841,0.00018179,30]
[348182899,1736370523637,-5702.8057594,0.00018179,30]
[348182900,1736370523663,-1999.0,0.00018246,5]
[348182901,1736370523687,-1999.0,0.00018246,5]
[348182902,1736370523712,-1999.0,0.00018246,5]
[348182903,1736370523948,-1999.0,0.00018246,5]
[348182904,1736370523975,-1999.0,0.00018246,5]
[348182905,1736370524000,-1999.0,0.00018246,5]
[348182906,1736370524027,-1999.0,0.00018246,5]
[348182907,1736370524053,-1999.0,0.00018246,5]
[348182908,1736370524080,-1999.0,0.00018246,5]
[348182909,1736370524106,-1999.0,0.00018246,5]
[348182910,1736370524132,-332.74053407,0.00018246,5]
[348182911,1736370524158,-1169.0,0.000183,6]
[348182912,1736370524184,-999.0,0.0001835,8]
[348182913,1736370524210,-152.0,0.00018438,14]
[348182914,1736370524236,-175.48195948,0.00018438,5]
[348182915,1736370524280,-1778.54,0.000186,31]
[348182916,1736370524309,-1778.54,0.000186,31]
[348182917,1736370524338,-1778.54,0.000186,31]
[348182918,1736370524366,-1778.54,0.000186,31]
[348182919,1736370524395,-1778.54,0.000186,31]
[348182920,1736370524424,-1778.54,0.000186,31]
[348182921,1736370524454,-1778.54,0.000186,31]
[348182922,1736370524483,-1778.54,0.000186,31]
[348182923,1736370524513,-1778.54,0.000186,31]
[348182924,1736370524542,-1778.54,0.000186,31]
[348182925,1736370524572,-1778.54,0.000186,31]
[348182926,1736370524599,-1778.54,0.000186,31]
[348182927,1736370524627,-1778.54,0.000186,31]
[348182928,1736370524655,-1778.54,0.000186,31]
[348182929,1736370524683,-1778.54,0.000186,31]
[348182930,1736370524711,-1778.54,0.000186,31]
[348182931,1736370524740,-1778.54,0.000186,31]
[348182932,1736370524769,-1778.54,0.000186,31]
[348182933,1736370524797,-1778.54,0.000186,31]
[348182934,1736370524828,-1778.54,0.000186,31]
[348182935,1736370524855,-1778.54,0.000186,31]
[348182936,1736370524883,-1778.54,0.000186,31]
[348182937,1736370524911,-1778.54,0.000186,31]
[348182938,1736370524939,-1778.54,0.000186,31]
[348182939,1736370524966,-9279.18624566,0.000188,5]
[348182940,1736370524992,-1169.0,0.000188,6]
[348182941,1736370525018,-158.3355972,0.00019,10]
[348182942,1736370525045,-1800.0,0.00019,20]
[348182943,1736370525072,-400.0,0.00019,5]
[348182944,1736370525098,-339.70600402,0.0001901,7]
[348182945,1736370525125,-1353.69736,0.00019088,7]
[348182946,1736370525151,-44978.80791,0.00019178,7]
[348182947,1736370525177,-8710.37428184,0.00019178,7]
[348182948,1736370525211,-1353.69736,0.00019288,7]
[348182949,1736370525238,-2020.148565,0.000193,7]
[348182950,1736370525264,-54770.0295641,0.000194,5]
[348182951,1736370525291,-1353.69736,0.00019488,7]
[348182952,1736370525319,-258.2669114,0.0001961,5]
[348182953,1736370525346,-1353.69736,0.00019688,7]
[348182954,1736370525373,-335304.0,0.000199,7]
[348182955,1736370525401,-255667.74250131,0.000199,10]
[348182956,1736370531425,-744332.25749869,0.000199,10]
[348182957,1736370531452,-10914.5456789,0.000199,5]
[348182958,1736370531478,-425.0,0.00019996,10]
[348182959,1736370531512,-160.09148696,0.0002,15]
[348182960,1736370531539,-1390.39754622,0.0002,5]
[348182961,1736370531567,-1900.0,0.0002,10]
[348182962,1736370531596,-24392.64436232,0.0002,20]
[348182963,1736370531623,-2772.23219879,0.0002,7]
[348182964,1736370531650,-470.76412228,0.0002,10]
[348182965,1736370531676,-7457.380751,0.0002,7]
[348182966,1736370531701,-2792.454094,0.0002,7]
[348182967,1736370531727,-1419.639777,0.0002,7]
[348182968,1736370531753,-2100.0,0.0002,10]
[348182969,1736370531778,-18427.80852483,0.0002,14]
[348182970,1736370531804,-1013.0,0.0002,6]
[348182971,1736370531833,-794.43140459,0.0002,7]
[348182972,1736370531858,-1000.0,0.0002,7]
[348182973,1736370531885,-1800.0,0.0002,21]
[348182974,1736370531912,-5000.0,0.0002,7]
[348182975,1736370531939,-3000.0,0.0002,7]
[348182976,1736370531966,-33068.5408982,0.0002,5]
[348182977,1736370531992,-1000.0,0.0002,6]
[348182978,1736370532019,-1000.0,0.0002,6]
[348182979,1736370532044,-1000.0,0.0002,6]
[348182980,1736370532073,-1000.0,0.0002,6]
[348182981,1736370532101,-1000.0,0.0002,6]
[348182982,1736370532128,-1000.0,0.0002,6]
[348182983,1736370532155,-1000.0,0.0002,6]
[348182984,1736370532182,-1015.0,0.0002,6]
[348182985,1736370532208,-10000.0,0.0002,12]
[348182986,1736370532235,-11369.02530231,0.0002,10]
[348182987,1736370532262,-224.78977509,0.0002,10]
[348182988,1736370532288,-200.0,0.0002,5]
[348182989,1736370532313,-1009.34362472,0.0002,10]
[348182990,1736370532342,-1215.87992914,0.0002,10]
[348182991,1736370532369,-10000.0,0.0002,15]
[348182992,1736370532395,-300.0,0.0002,7]
[348182993,1736370532421,-300.0,0.0002,7]
[348182994,1736370532448,-300.0,0.0002,7]
[348182995,1736370532474,-300.0,0.0002,7]
[348182996,1736370532500,-526.51069403,0.0002,7]
[348182997,1736370532525,-5000.0,0.0002,5]
[348182998,1736370532552,-1350.0,0.0002,10]
[348182999,1736370532580,-5008.4231813,0.0002,14]
[348183000,1736370532605,-3555.12776499,0.0002,30]
[348183001,1736370532630,-482.73287781,0.0002,30]
[348183002,1736370532655,-234.06758404,0.0002,60]
[348183003,1736370532681,-1508.30590276,0.0002,30]
[348183004,1736370532712,-2000.0,0.0002,30]
[348183005,1736370532738,-3869.30472835,0.0002,10]
[348183006,1736370532764,-1000.0,0.0002,6]
[348183007,1736370532790,-1000.0,0.0002,6]
[348183008,1736370532815,-1000.0,0.0002,6]
[348183009,1736370532841,-1000.0,0.0002,6]
[348183010,1736370532867,-1000.0,0.0002,6]
[348183011,1736370532893,-1000.0,0.0002,6]
[348183012,1736370532919,-1000.0,0.0002,6]
[348183013,1736370532943,-1000.0,0.0002,6]
[348183014,1736370532970,-1000.0,0.0002,6]
[348183015,1736370532995,-1000.0,0.0002,6]
[348183016,1736370533020,-1000.0,0.0002,6]
[348183017,1736370533047,-1000.0,0.0002,6]
[348183018,1736370533073,-1000.0,0.0002,6]
[348183019,1736370533098,-1000.0,0.0002,6]
[348183020,1736370533122,-1000.0,0.0002,6]
[348183021,1736370533146,-1000.0,0.0002,6]
[348183022,1736370533172,-1000.0,0.0002,6]
[348183023,1736370533196,-1000.0,0.0002,6]
[348183024,1736370533220,-1000.0,0.0002,6]
[348183025,1736370533246,-1000.0,0.0002,6]
[348183026,1736370533270,-1000.0,0.0002,6]
[348183027,1736370533296,-1000.0,0.0002,6]
[348183028,1736370533321,-280.06504258,0.0002,6]
[348183029,1736370533347,-28164.33937249,0.0002,7]
[348183030,1736370533378,-500.0,0.0002,30]
[348183031,1736370533404,-500.0,0.0002,30]
[348183032,1736370533430,-500.0,0.0002,30]
[348183033,1736370533640,-500.0,0.0002,30]
[348183034,1736370533668,-500.0,0.0002,30]
[348183035,1736370533693,-500.0,0.0002,30]
[348183036,1736370533717,-500.0,0.0002,30]
[348183037,1736370533744,-500.0,0.0002,30]
[348183038,1736370533770,-500.0,0.0002,30]
[348183039,1736370533795,-500.0,0.0002,30]
[348183040,1736370533820,-500.0,0.0002,30]
[348183041,1736370533847,-608.87538843,0.0002,30]
[348183042,1736370533873,-500.0,0.0002,30]
[348183043,1736370533901,-500.0,0.0002,30]
[348183044,1736370533928,-500.0,0.0002,30]
[348183045,1736370533957,-501.76132,0.0002,30]
[348183046,1736370533986,-2616.50798977,0.00020022,20]
[348183047,1736370534011,-1353.69736,0.00020088,7]
[348183048,1736370534037,-1353.69736,0.00020288,7]
[348183049,1736370534063,-1353.69736,0.00020488,7]
[348183050,1736370534088,-999.0,0.00020542,10]
[348183051,1736370534113,-1353.69736,0.00020688,7]
[348183052,1736370534138,-150.0,0.00020832,120]
[348183053,1736370534163,-1500.0,0.00021,20]
[348183054,1736370534188,-1800.0,0.00021,22]
[348183055,1736370534213,-200.83215328,0.00021,7]
[348183056,1736370534238,-396.26,0.00021,7]
[348183057,1736370534263,-1000.0,0.00021,7]
[348183058,1736370534288,-1007.25,0.00021,7]
[348183059,1736370534313,-1004.16,0.00021,7]
[348183060,1736370534340,-1000.0,0.00021,7]
[348183061,1736370534365,-1000.0,0.00021,7]
[348183062,1736370534393,-1001.0,0.000215,10]
[348183063,1736370534418,-500.0,0.00021917,8]
[348183064,1736370534443,-500.0,0.00021917,8]
[348183065,1736370534469,-500.0,0.00021917,8]
[348183066,1736370534497,-500.0,0.00021917,8]
[348183067,1736370534522,-500.0,0.00021917,8]
[348183068,1736370534549,-500.0,0.00021917,8]
[348183069,1736370534576,-500.0,0.00021917,8]
[348183070,1736370534601,-500.0,0.00021917,8]
[348183071,1736370534626,-500.0,0.00021917,8]
[348183072,1736370534650,-500.0,0.00021917,8]
[348183073,1736370534676,-500.0,0.00021917,8]
[348183074,1736370534701,-228.9849494,0.00021917,8]
[348183075,1736370534726,-1000.0,0.00021917,120]
[348183076,1736370534751,-1083.22244032,0.00021917,120]
[348183077,1736370534776,-2000.0,0.00021917,30]
[348183078,1736370534802,-2000.0,0.00021917,30]
[348183079,1736370534827,-2000.0,0.00021917,30]
[348183080,1736370534853,-2000.0,0.00021917,30]
[348183081,1736370534878,-2000.0,0.00021917,30]
[348183082,1736370534903,-2000.0,0.00021917,30]
[348183083,1736370534929,-2000.0,0.00021917,30]
[348183084,1736370534954,-2000.0,0.00021917,30]
[348183085,1736370534979,-2000.0,0.00021917,30]
[348183086,1736370535004,-2000.0,0.00021917,30]
[348183087,1736370535029,-2000.0,0.00021918,13]
[348183088,1736370535054,-2000.0,0.00021918,13]
[348183089,1736370535080,-2000.0,0.00021918,13]
[348183090,1736370535106,-2000.0,0.00021918,13]
[348183091,1736370535132,-2000.0,0.00021918,13]
[348183092,1736370535157,-2000.0,0.00021918,13]
[348183093,1736370535183,-2000.0,0.00021918,13]
[348183094,1736370535208,-2000.0,0.00021918,13]
[348183095,1736370535234,-1323.0,0.00021918,13]
[348183096,1736370535259,-2000.0,0.00021918,13]
[348183097,1736370535284,-2000.0,0.00021918,13]
[348183098,1736370535308,-2000.0,0.00021918,13]
[348183099,1736370535334,-2000.0,0.00021918,13]
[348183100,1736370535359,-2000.0,0.00021918,13]
[348183101,1736370535385,-2000.0,0.00021918,13]
[348183102,1736370535410,-2000.0,0.00021918,13]
[348183103,1736370535436,-2000.0,0.00021918,13]
[348183104,1736370535462,-2000.0,0.00021918,13]
[348183105,1736370535490,-2000.0,0.00021918,13]
[348183106,1736370535516,-2000.0,0.00021918,13]
[348183107,1736370535543,-2000.0,0.00021918,13]
[348183108,1736370535570,-2000.0,0.00021918,13]
[348183109,1736370535597,-2000.0,0.00021918,13]
[348183110,1736370535622,-2000.0,0.00021918,13]
[348183111,1736370535648,-2000.0,0.00021918,13]
[348183112,1736370535673,-2000.0,0.00021918,13]
[348183113,1736370535698,-2000.0,0.00021918,13]
[348183114,1736370535724,-2000.0,0.00021918,13]
[348183115,1736370535749,-2000.0,0.00021918,13]
[348183116,1736370535775,-2000.0,0.00021918,13]
[348183117,1736370535800,-2000.0,0.00021918,13]
[348183118,1736370535825,-2000.0,0.00021918,13]
[348183119,1736370535850,-2000.0,0.00021918,13]
[348183120,1736370535875,-1614.0,0.00021918,13]
[348183121,1736370535900,-2000.0,0.00021918,13]
[348183122,1736370535926,-2000.0,0.00021918,13]
[348183123,1736370535954,-2000.0,0.00021918,13]
[348183124,1736370535980,-2000.0,0.00021918,13]
[348183125,1736370536005,-2000.0,0.00021918,13]
[348183126,1736370536031,-2000.0,0.00021918,13]
[348183127,1736370536057,-2000.0,0.00021918,13]
[348183128,1736370536083,-685.0,0.00021918,13]
[348183129,1736370536269,-2000.0,0.00021918,13]
[348183130,1736370536297,-2000.0,0.00021918,13]
[348183131,1736370536324,-2000.0,0.00021918,13]
[348183132,1736370536350,-2000.0,0.00021918,13]
[348183133,1736370536376,-2007.0,0.00021918,13]
[348183134,1736370536401,-56121.7394667,0.00022,14]
[348183135,1736370536427,-1800.0,0.00022,23]
[348183136,1736370536453,-91298.72506049,0.00022,7]
[348183137,1736370536482,-20000.0,0.00022,15]
[348183138,1736370536512,-755.18534978,0.00022,7]
[348183139,1736370536539,-1600.0,0.00022,7]
[348183140,1736370536567,-6000.0,0.00022,15]
[348183141,1736370536593,-8019.63162338,0.00022,15]
[348183142,1736370536620,-7165.48664482,0.00022,5]
[348183143,1736370536647,-14036.44645304,0.00022,5]
[348183144,1736370536674,-2240.66522678,0.00022,15]
[348183145,1736370536701,-2000.0,0.00022,120]
[348183146,1736370536727,-29989.08480666,0.00022,120]
[348183147,1736370536754,-5000.0,0.00022,120]
[348183148,1736370536780,-43018.2379896,0.00022,30]
[348183149,1736370536807,-200.76551599,0.00022,20]
[348183150,1736370536832,-501.6132133,0.000222,15]
[348183151,1736370536859,-7460.9,0.000224,7]
[348183152,1736370536895,-2900.0,0.000225,15]
[348183153,1736370536927,-2665.22193915,0.000225,30]
[348183154,1736370536955,-5882.65,0.000226,14]
[348183155,1736370536984,-150.0,0.00022708,120]
[348183156,1736370537013,-999.0,0.00022734,12]
[348183157,1736370537041,-2045.92474687,0.00022784,7]
[348183158,1736370537069,-1000000.0,0.000229,10]
[348183159,1736370537097,-2605.2393362,0.00022961,9]
[348183160,1736370537125,-6032.34373542,0.0002299,10]
[348183161,1736370537153,-502.673539,0.00022999,120]
[348183162,1736370537180,-2000.0,0.00022999,120]
[348183163,1736370537207,-502.273428,0.00022999,120]
[348183164,1736370537236,-202.06197,0.00022999,120]
[348183165,1736370537264,-1000.0,0.00023,14]
[348183166,1736370537292,-67000.0,0.00023,20]
[348183167,1736370537319,-52000.009995,0.00023,10]
[348183168,1736370537347,-320.0,0.00023,10]
[348183169,1736370537376,-3000.0,0.00023,21]
[348183170,1736370537403,-1800.0,0.00023,24]
[348183171,1736370537428,-1000.0,0.00023,10]
[348183172,1736370537454,-5000.0,0.00023,10]
[348183173,1736370537481,-5419.54454328,0.00023,10]
[348183174,1736370537511,-9895.38490693,0.00023,14]
[348183175,1736370537537,-169425.57763755,0.00023,7]
[348183176,1736370537563,-300.0,0.00023,90]
[348183177,1736370537592,-2000.0,0.00023,30]
[348183178,1736370537620,-500.0,0.00023,30]
[348183179,1736370537650,-2000.0,0.00023,30]
[348183180,1736370537678,-500.0,0.00023,30]
[348183181,1736370537705,-2000.0,0.00023,30]
[348183182,1736370537732,-500.0,0.00023,30]
[348183183,1736370537759,-274.23331126,0.00023,30]
[348183184,1736370537786,-500.0,0.00023,30]
[348183185,1736370537811,-500.0,0.00023,30]
[348183186,1736370537841,-500.0,0.00023,30]
[348183187,1736370537874,-500.0,0.00023,30]
[348183188,1736370537906,-2000.0,0.00023,30]
[348183189,1736370537938,-2000.0,0.00023,30]
[348183190,1736370537967,-2000.0,0.00023,30]
[348183191,1736370537994,-1200.0,0.00023,30]
[348183192,1736370538023,-2000.0,0.00023,30]
[348183193,1736370538055,-1200.0,0.00023,30]
[348183194,1736370538084,-1200.0,0.00023,30]
[348183195,1736370538112,-500.0,0.00023,30]
[348183196,1736370538139,-159.31355618,0.00023,30]
[348183197,1736370538164,-208.18099326,0.00023,30]
[348183198,1736370538190,-500.0,0.00023,30]
[348183199,1736370538215,-1200.0,0.00023,30]
[348183200,1736370538241,-500.7,0.00023,30]
[348183201,1736370538267,-297.64711857,0.00023,30]
[348183202,1736370538293,-1200.0,0.00023,30]
[348183203,1736370538319,-2000.0,0.00023,30]
[348183204,1736370538347,-500.0,0.00023,30]
[348183205,1736370538372,-810.0,0.00023,30]
[348183206,1736370538399,-1200.0,0.00023,30]
[348183207,1736370538425,-2000.0,0.00023,30]
[348183208,1736370538451,-986.97312555,0.00023,30]
[348183209,1736370538482,-1200.0,0.00023,30]
[348183210,1736370538511,-1200.0,0.00023,30]
[348183211,1736370538538,-500.0,0.00023,30]
[348183212,1736370538565,-1200.0,0.00023,30]
[348183213,1736370538597,-163.10827353,0.00023,30]
[348183214,1736370538624,-1200.0,0.00023,30]
[348183215,1736370538652,-2000.0,0.00023,30]
[348183216,1736370538680,-688.40404792,0.00023,30]
[348183217,1736370538707,-2000.0,0.00023,30]
[348183218,1736370538735,-2000.0,0.00023,30]
[348183219,1736370538761,-500.0,0.00023,30]
[348183220,1736370538788,-547.70300176,0.00023,30]
[348183221,1736370538816,-2000.0,0.00023,30]
[348183222,1736370538845,-159.54137064,0.00023,30]
[348183223,1736370538875,-1200.0,0.00023,30]
[348183224,1736370539120,-500.0,0.00023,30]
[348183225,1736370539149,-500.0,0.00023,30]
[348183226,1736370539177,-1200.0,0.00023,30]
[348183227,1736370539204,-500.0,0.00023,30]
[348183228,1736370539232,-500.0,0.00023,30]
[348183229,1736370539259,-1200.0,0.00023,30]
[348183230,1736370539286,-500.0,0.00023,30]
[348183231,1736370539313,-500.0,0.00023,30]
[348183232,1736370539341,-500.0,0.00023,30]
[348183233,1736370539367,-160.21742824,0.00023,30]
[348183234,1736370539394,-2000.0,0.00023,30]
[348183235,1736370539422,-955.29139172,0.00023,30]
[348183236,1736370539451,-500.0,0.00023,30]
[348183237,1736370539480,-500.0,0.00023,30]
[348183238,1736370539510,-500.0,0.00023,30]
[348183239,1736370539545,-412.27567433,0.00023,30]
[348183240,1736370539575,-1200.0,0.00023,30]
[348183241,1736370539603,-500.0,0.00023,30]
[348183242,1736370539629,-156.97827624,0.00023,30]
[348183243,1736370539656,-500.0,0.00023,30]
[348183244,1736370539683,-500.0,0.00023,30]
[348183245,1736370539709,-500.0,0.00023,30]
[348183246,1736370539736,-500.0,0.00023,30]
[348183247,1736370539761,-500.0,0.00023,30]
[348183248,1736370539788,-500.0,0.00023,30]
[348183249,1736370539815,-600.0,0.00023,30]
[348183250,1736370539841,-500.0,0.00023,30]
[348183251,1736370539866,-500.0,0.00023,30]
[348183252,1736370539892,-500.0,0.00023,30]
[348183253,1736370539917,-600.0,0.00023,30]
[348183254,1736370539942,-500.0,0.00023,30]
[348183255,1736370539967,-600.0,0.00023,30]
[348183256,1736370539992,-700.0,0.00023,30]
[348183257,1736370540017,-500.0,0.00023,30]
[348183258,1736370540043,-500.0,0.00023,30]
[348183259,1736370540070,-470.2322072,0.00023,30]
[348183260,1736370540097,-772.64618074,0.00023,30]
[348183261,1736370540123,-500.0,0.00023,30]
[348183262,1736370540148,-500.0,0.00023,30]
[348183263,1736370540174,-700.0,0.00023,30]
[348183264,1736370540199,-500.0,0.00023,30]
[348183265,1736370540226,-600.0,0.00023,30]
[348183266,1736370540255,-500.0,0.00023,30]
[348183267,1736370540281,-700.0,0.00023,30]
[348183268,1736370540307,-500.0,0.00023,30]
[348183269,1736370540337,-700.0,0.00023,30]
[348183270,1736370540363,-500.0,0.00023,30]